[Event "December 5 Early 2023"]
[Site "https://www.chess.com"]
[Date "2023.12.05"]
[Round "2"]
[White "Boor, Carl"]
[Black "Chirivi C, Jenny Astrid"]
[Result "1-0"]
[Board "129"]
[TimeControl "180+1"]
[WhiteFideId "2017008"]
[BlackFideId "4403061"]
[WhiteElo "2588"]
[BlackElo "2326"]
[WhiteTeam "USA"]
[BlackTeam "COL"]
[WhiteClock "0:00:22"]
[BlackClock "0:00:02"]

1. d4 {[%clk 0:03:00]}  Nf6 {[%clk 0:02:53]} 2. c4 {[%clk 0:03:00]}  e6 {[%clk 0:02:53]} 3. Nc3 {[%clk 0:03:00]}  Bb4 {[%clk 0:02:52]} 4. a3 {[%clk 0:03:00]}  Bxc3+ {[%clk 0:02:50]} 5. bxc3 {[%clk 0:03:01]}  c5 {[%clk 0:02:49]} 6. f3 {[%clk 0:02:58]}  d5 {[%clk 0:02:32]} 7. cxd5 {[%clk 0:02:56]}  Nxd5 {[%clk 0:02:29]} 8. Qd2 {[%clk 0:02:43]}  cxd4 {[%clk 0:02:21]} 9. cxd4 {[%clk 0:02:43]}  O-O {[%clk 0:02:16]} 10. e4 {[%clk 0:02:43]}  Nf6 {[%clk 0:02:16]} 11. Bb2 {[%clk 0:02:40]}  Nc6 {[%clk 0:02:14]} 12. Bc4 {[%clk 0:02:36]}  b6 {[%clk 0:02:12]} 13. Ne2 {[%clk 0:02:34]}  Bb7 {[%clk 0:02:11]} 14. O-O {[%clk 0:02:33]}  Rc8 {[%clk 0:02:10]} 15. Rad1 {[%clk 0:02:18]}  Na5 {[%clk 0:02:09]} 16. Bd3 {[%clk 0:02:17]}  Nc4 {[%clk 0:02:03]} 17. Bxc4 {[%clk 0:02:17]}  Rxc4 {[%clk 0:02:03]} 18. Rfe1 {[%clk 0:02:08]}  Qe7 {[%clk 0:02:03]} 19. Rc1 {[%clk 0:01:55]}  Rfc8 {[%clk 0:02:00]} 20. Rxc4 {[%clk 0:01:54]}  Rxc4 {[%clk 0:01:59]} 21. Rc1 {[%clk 0:01:45]}  Qc7 {[%clk 0:01:57]} 22. Rxc4 {[%clk 0:01:43]}  Qxc4 {[%clk 0:01:56]} 23. Nf4 {[%clk 0:01:19]}  Ba6 {[%clk 0:01:46]} 24. h3 {[%clk 0:01:13]}  g5 {[%clk 0:01:21]} 25. d5 {[%clk 0:01:01]}  Nxe4 {[%clk 0:01:09]} 26. fxe4 {[%clk 0:00:54]}  Qf1+ {[%clk 0:01:09]} 27. Kh2 {[%clk 0:00:45]}  Qxf4+ {[%clk 0:01:09]} 28. Qxf4 {[%clk 0:00:45]}  gxf4 {[%clk 0:01:08]} 29. d6 {[%clk 0:00:42]}  Kf8 {[%clk 0:01:04]} 30. Bf6 {[%clk 0:00:38]}  Ke8 {[%clk 0:01:02]} 31. e5 {[%clk 0:00:36]}  Be2 {[%clk 0:00:59]} 32. Kg1 {[%clk 0:00:32]}  f3 {[%clk 0:00:57]} 33. g4 {[%clk 0:00:31]}  Kd7 {[%clk 0:00:55]} 34. Bh4 {[%clk 0:00:20]}  b5 {[%clk 0:00:54]} 35. Be1 {[%clk 0:00:18]}  a6 {[%clk 0:00:52]} 36. Kf2 {[%clk 0:00:18]}  Bd1 {[%clk 0:00:51]} 37. Ke3 {[%clk 0:00:17]}  Be2 {[%clk 0:00:50]} 38. Kd4 {[%clk 0:00:17]}  Kc6 {[%clk 0:00:47]} 39. g5 {[%clk 0:00:16]}  a5 {[%clk 0:00:28]} 40. Ke3 {[%clk 0:00:15]}  a4 {[%clk 0:00:17]} 41. Kf2 {[%clk 0:00:13]}  Bd1 {[%clk 0:00:14]} 42. Bd2 {[%clk 0:00:13]}  Be2 {[%clk 0:00:13]} 43. Bc3 {[%clk 0:00:13]}  Bd1 {[%clk 0:00:13]} 44. Bb4 {[%clk 0:00:14]}  Be2 {[%clk 0:00:11]} 45. Ke3 {[%clk 0:00:15]}  Bd1 {[%clk 0:00:11]} 46. h4 {[%clk 0:00:15]}  Kd7 {[%clk 0:00:09]} 47. Kf2 {[%clk 0:00:16]}  Kc6 {[%clk 0:00:08]} 48. Bc5 {[%clk 0:00:14]}  Be2 {[%clk 0:00:08]} 49. Bb4 {[%clk 0:00:14]}  Bd1 {[%clk 0:00:08]} 50. Kg3 {[%clk 0:00:15]}  Be2 {[%clk 0:00:07]} 51. Be1 {[%clk 0:00:15]}  Bd1 {[%clk 0:00:07]} 52. h5 {[%clk 0:00:14]}  f2 {[%clk 0:00:05]} 53. Kxf2 {[%clk 0:00:14]}  Bxh5 {[%clk 0:00:06]} 54. Ke3 {[%clk 0:00:14]}  Bg6 {[%clk 0:00:05]} 55. Kd4 {[%clk 0:00:15]}  Bc2 {[%clk 0:00:04]} 56. Kc3 {[%clk 0:00:15]}  Bb1 {[%clk 0:00:04]} 57. Kb4 {[%clk 0:00:16]}  Be4 {[%clk 0:00:04]} 58. Ka5 {[%clk 0:00:17]}  Bd3 {[%clk 0:00:04]} 59. Ka6 {[%clk 0:00:17]}  b4+ {[%clk 0:00:04]} 60. Ka5 {[%clk 0:00:17]}  bxa3 {[%clk 0:00:04]} 61. Bc3 {[%clk 0:00:17]}  Bc2 {[%clk 0:00:03]} 62. Kb4 {[%clk 0:00:17]}  a2 {[%clk 0:00:03]} 63. Ka3 {[%clk 0:00:17]}  Bd3 {[%clk 0:00:02]} 64. Kb2 {[%clk 0:00:17]}  Bc4 {[%clk 0:00:02]} 65. Ka1 {[%clk 0:00:17]}  Kd7 {[%clk 0:00:03]} 66. Bd2 {[%clk 0:00:17]}  a3 {[%clk 0:00:03]} 67. Bf4 {[%clk 0:00:17]}  Bb3 {[%clk 0:00:03]} 68. Bc1 {[%clk 0:00:17]}  Kc6 {[%clk 0:00:03]} 69. Bxa3 {[%clk 0:00:17]}  Ba4 {[%clk 0:00:03]} 70. Bc1 {[%clk 0:00:18]}  Kd5 {[%clk 0:00:04]} 71. Bf4 {[%clk 0:00:17]}  Ke4 {[%clk 0:00:04]} 72. Bg3 {[%clk 0:00:16]}  Kf5 {[%clk 0:00:04]} 73. Kxa2 {[%clk 0:00:15]}  Kxg5 {[%clk 0:00:04]} 74. Ka3 {[%clk 0:00:16]}  Bd7 {[%clk 0:00:03]} 75. Kb4 {[%clk 0:00:16]}  Kf5 {[%clk 0:00:03]} 76. Kc5 {[%clk 0:00:16]}  h5 {[%clk 0:00:01]} 77. Kb6 {[%clk 0:00:16]}  Kg4 {[%clk 0:00:02]} 78. Bh2 {[%clk 0:00:16]}  h4 {[%clk 0:00:02]} 79. Kc7 {[%clk 0:00:16]}  Kh3 {[%clk 0:00:03]} 80. Kxd7 {[%clk 0:00:15]}  Kxh2 {[%clk 0:00:02]} 81. Ke7 {[%clk 0:00:15]}  Kg2 {[%clk 0:00:02]} 82. d7 {[%clk 0:00:16]}  h3 {[%clk 0:00:03]} 83. d8=Q {[%clk 0:00:17]}  h2 {[%clk 0:00:04]} 84. Qd1 {[%clk 0:00:16]}  h1=Q {[%clk 0:00:02]} 85. Qxh1+ {[%clk 0:00:16]}  Kxh1 {[%clk 0:00:03]} 86. Kxf7 {[%clk 0:00:17]}  Kg2 {[%clk 0:00:03]} 87. Kxe6 {[%clk 0:00:18]}  Kf3 {[%clk 0:00:04]} 88. Kf6 {[%clk 0:00:18]}  Kg4 {[%clk 0:00:05]} 89. e6 {[%clk 0:00:19]}  Kf4 {[%clk 0:00:05]} 90. e7 {[%clk 0:00:20]}  Kg4 {[%clk 0:00:05]} 91. e8=Q {[%clk 0:00:21]}  Kf4 {[%clk 0:00:02]} 92. Qe5+ {[%clk 0:00:22]} 1-0

[Event "December 5 Early 2023"]
[Site "https://www.chess.com"]
[Date "2023.12.05"]
[Round "2"]
[White "Mendez Fortes, Eduardo Jesus"]
[Black "Vorons, Uldis"]
[Result "0-1"]
[Board "130"]
[TimeControl "180+1"]
[WhiteFideId "3502376"]
[BlackFideId "11611758"]
[WhiteElo "2573"]
[BlackElo "2172"]
[WhiteTeam "CUB"]
[BlackTeam "LAT"]
[WhiteClock "0:01:45"]
[BlackClock "0:00:03"]

1. e4 {[%clk 0:03:00]}  e5 {[%clk 0:02:57]} 2. Nf3 {[%clk 0:03:00]}  Nc6 {[%clk 0:02:57]} 3. Bb5 {[%clk 0:03:01]}  a6 {[%clk 0:02:57]} 4. Ba4 {[%clk 0:03:01]}  Nf6 {[%clk 0:02:58]} 5. O-O {[%clk 0:03:02]}  Be7 {[%clk 0:02:54]} 6. Re1 {[%clk 0:03:02]}  b5 {[%clk 0:02:54]} 7. Bb3 {[%clk 0:03:03]}  d6 {[%clk 0:02:55]} 8. c3 {[%clk 0:03:03]}  O-O {[%clk 0:02:55]} 9. h3 {[%clk 0:03:04]}  Na5 {[%clk 0:02:55]} 10. Bc2 {[%clk 0:03:04]}  c5 {[%clk 0:02:55]} 11. d4 {[%clk 0:03:05]}  Nd7 {[%clk 0:02:56]} 12. a4 {[%clk 0:03:04]}  Bb7 {[%clk 0:02:46]} 13. d5 {[%clk 0:03:02]}  Nc4 {[%clk 0:02:43]} 14. b3 {[%clk 0:03:00]}  Ncb6 {[%clk 0:02:43]} 15. a5 {[%clk 0:02:59]}  Nc8 {[%clk 0:02:43]} 16. c4 {[%clk 0:02:59]}  Bf6 {[%clk 0:02:26]} 17. Nc3 {[%clk 0:02:57]}  b4 {[%clk 0:02:26]} 18. Ne2 {[%clk 0:02:56]}  g6 {[%clk 0:02:26]} 19. Bh6 {[%clk 0:02:56]}  Bg7 {[%clk 0:02:26]} 20. Qd2 {[%clk 0:02:56]}  Ne7 {[%clk 0:02:21]} 21. Ng3 {[%clk 0:02:55]}  Bc8 {[%clk 0:02:15]} 22. h4 {[%clk 0:02:55]}  Nf6 {[%clk 0:02:08]} 23. h5 {[%clk 0:02:54]}  Bg4 {[%clk 0:01:53]} 24. hxg6 {[%clk 0:02:51]}  fxg6 {[%clk 0:01:54]} 25. Bxg7 {[%clk 0:02:48]}  Kxg7 {[%clk 0:01:55]} 26. Nh2 {[%clk 0:02:47]}  Bd7 {[%clk 0:01:52]} 27. f4 {[%clk 0:02:46]}  exf4 {[%clk 0:01:15]} 28. Qxf4 {[%clk 0:02:46]}  Nfxd5 {[%clk 0:00:44]} 29. Qxd6 {[%clk 0:02:45]}  Nc3 {[%clk 0:00:45]} 30. Qxc5 {[%clk 0:02:37]}  Qb8 {[%clk 0:00:30]} 31. Qd4+ {[%clk 0:02:31]}  Kg8 {[%clk 0:00:29]} 32. Qxd7 {[%clk 0:02:30]}  Qxg3 {[%clk 0:00:28]} 33. Qe6+ {[%clk 0:02:22]}  Kh8 {[%clk 0:00:22]} 34. Rf1 {[%clk 0:02:12]}  Ne2+ {[%clk 0:00:21]} 35. Kh1 {[%clk 0:02:12]}  Qc7 {[%clk 0:00:10]} 36. Ng4 {[%clk 0:02:07]}  Ng3+ {[%clk 0:00:10]} 37. Kg1 {[%clk 0:02:08]}  Qc5+ {[%clk 0:00:10]} 38. Rf2 {[%clk 0:02:07]}  Ne2+ {[%clk 0:00:09]} 39. Kf1 {[%clk 0:02:04]}  Ng3+ {[%clk 0:00:09]} 40. Kg1 {[%clk 0:02:01]}  Ne2+ {[%clk 0:00:09]} 41. Kh2 {[%clk 0:01:49]}  Rxf2 {[%clk 0:00:10]} 42. Nxf2 {[%clk 0:01:49]}  Qxf2 {[%clk 0:00:06]} 43. Qxe7 {[%clk 0:01:50]}  Qf4+ {[%clk 0:00:04]} 44. Kh1 {[%clk 0:01:45]}  Qh6+ {[%clk 0:00:03]} 0-1

[Event "December 5 Early 2023"]
[Site "https://www.chess.com"]
[Date "2023.12.05"]
[Round "2"]
[White "Garcia Correa, Jose Ricardo"]
[Black "Jaskolka, Tomasz"]
[Result "0-1"]
[Board "131"]
[TimeControl "180+1"]
[WhiteFideId "5101832"]
[BlackFideId "1170791"]
[WhiteElo "2240"]
[BlackElo "2548"]
[WhiteTeam "MEX"]
[BlackTeam "POL"]
[WhiteClock "0:00:00"]
[BlackClock "0:00:04"]

1. e4 {[%clk 0:02:59]}  d6 {[%clk 0:03:00]} 2. d4 {[%clk 0:02:59]}  Nf6 {[%clk 0:03:01]} 3. Nc3 {[%clk 0:02:58]}  Nbd7 {[%clk 0:03:01]} 4. f3 {[%clk 0:02:44]}  e5 {[%clk 0:03:01]} 5. Bc4 {[%clk 0:02:42]}  c6 {[%clk 0:03:00]} 6. Bb3 {[%clk 0:02:41]}  b5 {[%clk 0:02:58]} 7. Nge2 {[%clk 0:02:40]}  Be7 {[%clk 0:02:56]} 8. Be3 {[%clk 0:02:39]}  h6 {[%clk 0:02:54]} 9. Qd2 {[%clk 0:02:38]}  Qc7 {[%clk 0:02:54]} 10. g4 {[%clk 0:02:20]}  exd4 {[%clk 0:02:45]} 11. Nxd4 {[%clk 0:02:19]}  Ne5 {[%clk 0:02:45]} 12. O-O-O {[%clk 0:02:10]}  a6 {[%clk 0:02:39]} 13. Qf2 {[%clk 0:01:49]}  c5 {[%clk 0:02:33]} 14. Ndxb5 {[%clk 0:01:47]}  axb5 {[%clk 0:02:33]} 15. Nxb5 {[%clk 0:01:46]}  Qc6 {[%clk 0:02:17]} 16. c4 {[%clk 0:01:45]}  Bxg4 {[%clk 0:02:10]} 17. fxg4 {[%clk 0:01:41]}  Nfxg4 {[%clk 0:02:09]} 18. Qg3 {[%clk 0:01:27]}  Nxe3 {[%clk 0:01:53]} 19. Nxd6+ {[%clk 0:01:17]}  Bxd6 {[%clk 0:01:48]} 20. Qxe3 {[%clk 0:01:16]}  O-O {[%clk 0:01:43]} 21. Rdg1 {[%clk 0:01:14]}  Ng6 {[%clk 0:01:43]} 22. Kb1 {[%clk 0:01:13]}  Rfe8 {[%clk 0:01:40]} 23. Bc2 {[%clk 0:01:10]}  Be5 {[%clk 0:01:40]} 24. h4 {[%clk 0:01:08]}  Qb6 {[%clk 0:01:27]} 25. Bb3 {[%clk 0:01:07]}  Bd4 {[%clk 0:01:21]} 26. Qf3 {[%clk 0:01:07]}  Bxg1 {[%clk 0:01:20]} 27. Rxg1 {[%clk 0:01:06]}  Nxh4 {[%clk 0:00:52]} 28. Qh1 {[%clk 0:01:03]}  Ng6 {[%clk 0:00:52]} 29. e5 {[%clk 0:01:03]}  Rad8 {[%clk 0:00:47]} 30. Bc2 {[%clk 0:00:52]}  Rxe5 {[%clk 0:00:41]} 31. Be4 {[%clk 0:00:50]}  Rd2 {[%clk 0:00:34]} 32. b3 {[%clk 0:00:48]}  Qa5 {[%clk 0:00:32]} 33. Bc2 {[%clk 0:00:37]}  Qc3 {[%clk 0:00:27]} 34. Rc1 {[%clk 0:00:36]}  Ree2 {[%clk 0:00:21]} 35. Qa8+ {[%clk 0:00:32]}  Nf8 {[%clk 0:00:19]} 36. Bh7+ {[%clk 0:00:32]}  Kxh7 {[%clk 0:00:19]} 37. Rxc3 {[%clk 0:00:33]}  Ne6 {[%clk 0:00:18]} 38. Rc1 {[%clk 0:00:29]}  Nd4 {[%clk 0:00:15]} 39. Qa5 {[%clk 0:00:08]}  h5 {[%clk 0:00:09]} 40. Rh1 {[%clk 0:00:07]}  Rb2+ {[%clk 0:00:06]} 41. Ka1 {[%clk 0:00:00]}  g6 {[%clk 0:00:04]} 0-1

[Event "December 5 Early 2023"]
[Site "https://www.chess.com"]
[Date "2023.12.05"]
[Round "2"]
[White "Donchenko, Alexander"]
[Black "Marchesich, Giovanni"]
[Result "1-0"]
[Board "133"]
[TimeControl "180+1"]
[WhiteFideId "24603295"]
[BlackFideId "2824790"]
[WhiteElo "2908"]
[BlackElo "2410"]
[WhiteTeam "GER"]
[BlackTeam "ITA"]
[WhiteClock "0:02:18"]
[BlackClock "0:01:03"]

1. Nf3 {[%clk 0:02:57]}  Nf6 {[%clk 0:02:59]} 2. g3 {[%clk 0:02:58]}  b5 {[%clk 0:02:53]} 3. Bg2 {[%clk 0:02:58]}  Bb7 {[%clk 0:02:54]} 4. Na3 {[%clk 0:02:58]}  a6 {[%clk 0:02:52]} 5. c4 {[%clk 0:02:58]}  b4 {[%clk 0:02:51]} 6. Nc2 {[%clk 0:02:59]}  c5 {[%clk 0:02:51]} 7. b3 {[%clk 0:02:59]}  e6 {[%clk 0:02:51]} 8. Bb2 {[%clk 0:03:00]}  Be7 {[%clk 0:02:51]} 9. O-O {[%clk 0:03:00]}  O-O {[%clk 0:02:50]} 10. d4 {[%clk 0:03:01]}  a5 {[%clk 0:02:35]} 11. d5 {[%clk 0:02:58]}  exd5 {[%clk 0:02:34]} 12. Nh4 {[%clk 0:02:58]}  Ra7 {[%clk 0:02:22]} 13. cxd5 {[%clk 0:02:57]}  d6 {[%clk 0:02:19]} 14. Nf5 {[%clk 0:02:57]}  Na6 {[%clk 0:02:17]} 15. Nce3 {[%clk 0:02:55]}  Nc7 {[%clk 0:02:16]} 16. Re1 {[%clk 0:02:51]}  Re8 {[%clk 0:02:15]} 17. Nxe7+ {[%clk 0:02:51]}  Qxe7 {[%clk 0:02:13]} 18. Nf5 {[%clk 0:02:51]}  Qd7 {[%clk 0:02:11]} 19. e4 {[%clk 0:02:50]}  Qd8 {[%clk 0:02:04]} 20. Qf3 {[%clk 0:02:45]}  g6 {[%clk 0:01:11]} 21. Nh6+ {[%clk 0:02:33]}  Kg7 {[%clk 0:01:10]} 22. Ng4 {[%clk 0:02:33]}  Re5 {[%clk 0:01:10]} 23. Nxe5 {[%clk 0:02:32]}  dxe5 {[%clk 0:01:10]} 24. Bxe5 {[%clk 0:02:33]}  Ne8 {[%clk 0:01:10]} 25. Rac1 {[%clk 0:02:30]}  Qe7 {[%clk 0:01:09]} 26. Bb2 {[%clk 0:02:26]}  Kg8 {[%clk 0:01:10]} 27. Qe3 {[%clk 0:02:18]}  Nd7 {[%clk 0:01:03]} 28. e5 {[%clk 0:02:18]} 1-0

[Event "December 5 Early 2023"]
[Site "https://www.chess.com"]
[Date "2023.12.05"]
[Round "2"]
[White "Ashraf, Artin"]
[Black "Mushini Ajay"]
[Result "1-0"]
[Board "134"]
[TimeControl "180+1"]
[WhiteFideId "22514805"]
[BlackFideId "35066188"]
[WhiteElo "2908"]
[BlackElo "2408"]
[WhiteTeam "IRI"]
[BlackTeam "IND"]
[WhiteClock "0:01:02"]
[BlackClock "0:00:12"]

1. e4 {[%clk 0:02:59]}  c5 {[%clk 0:03:00]} 2. Nf3 {[%clk 0:02:57]}  d6 {[%clk 0:03:01]} 3. d4 {[%clk 0:02:58]}  cxd4 {[%clk 0:03:02]} 4. Nxd4 {[%clk 0:02:59]}  Nf6 {[%clk 0:03:02]} 5. Nc3 {[%clk 0:02:59]}  a6 {[%clk 0:03:02]} 6. Bg5 {[%clk 0:02:58]}  e5 {[%clk 0:03:02]} 7. Nf5 {[%clk 0:02:47]}  Bxf5 {[%clk 0:03:00]} 8. exf5 {[%clk 0:02:47]}  Nbd7 {[%clk 0:02:59]} 9. Bc4 {[%clk 0:02:45]}  Rc8 {[%clk 0:02:56]} 10. Bb3 {[%clk 0:02:44]}  Be7 {[%clk 0:02:53]} 11. Qf3 {[%clk 0:02:43]}  b5 {[%clk 0:02:36]} 12. O-O {[%clk 0:02:41]}  O-O {[%clk 0:02:34]} 13. Rad1 {[%clk 0:02:39]}  b4 {[%clk 0:02:28]} 14. Ne2 {[%clk 0:02:37]}  a5 {[%clk 0:02:22]} 15. c4 {[%clk 0:02:32]}  Nc5 {[%clk 0:02:15]} 16. Ng3 {[%clk 0:02:30]}  a4 {[%clk 0:02:05]} 17. Bc2 {[%clk 0:02:29]}  b3 {[%clk 0:01:58]} 18. axb3 {[%clk 0:02:25]}  axb3 {[%clk 0:01:59]} 19. Bb1 {[%clk 0:02:22]}  h6 {[%clk 0:01:37]} 20. Be3 {[%clk 0:02:17]}  Qc7 {[%clk 0:01:35]} 21. Ne2 {[%clk 0:02:16]}  Na4 {[%clk 0:01:27]} 22. c5 {[%clk 0:02:12]}  d5 {[%clk 0:01:24]} 23. Rxd5 {[%clk 0:02:06]}  Nxd5 {[%clk 0:01:22]} 24. Qxd5 {[%clk 0:02:07]}  Bxc5 {[%clk 0:01:10]} 25. f6 {[%clk 0:01:59]}  Bxe3 {[%clk 0:00:58]} 26. fxg7 {[%clk 0:01:51]}  Kxg7 {[%clk 0:00:42]} 27. fxe3 {[%clk 0:01:50]}  Qc5 {[%clk 0:00:32]} 28. Qe4 {[%clk 0:01:49]}  f5 {[%clk 0:00:30]} 29. Qf3 {[%clk 0:01:21]}  f4 {[%clk 0:00:25]} 30. Kh1 {[%clk 0:01:15]}  fxe3 {[%clk 0:00:20]} 31. Qg4+ {[%clk 0:01:11]}  Kh8 {[%clk 0:00:20]} 32. Rg1 {[%clk 0:01:10]}  Qd6 {[%clk 0:00:17]} 33. Qxa4 {[%clk 0:01:08]}  Qf6 {[%clk 0:00:17]} 34. Qxb3 {[%clk 0:01:05]}  Rg8 {[%clk 0:00:17]} 35. Qxe3 {[%clk 0:01:04]}  Rg5 {[%clk 0:00:16]} 36. Nc3 {[%clk 0:01:03]}  Rcg8 {[%clk 0:00:16]} 37. Ne4 {[%clk 0:01:02]}  Qe7 {[%clk 0:00:16]} 38. Nxg5 {[%clk 0:01:02]}  Qxg5 {[%clk 0:00:12]} 39. Qe4 {[%clk 0:01:02]} 1-0

[Event "December 5 Early 2023"]
[Site "https://www.chess.com"]
[Date "2023.12.05"]
[Round "2"]
[White "Samaganova, Aleksandra"]
[Black "Yeremyan, Alen"]
[Result "0-1"]
[Board "137"]
[TimeControl "180+1"]
[WhiteFideId "13800221"]
[BlackFideId "13308998"]
[WhiteElo "2404"]
[BlackElo "2804"]
[WhiteTeam "KGZ"]
[BlackTeam "ARM"]
[WhiteClock "0:00:17"]
[BlackClock "0:02:34"]

1. c4 {[%clk 0:03:00]}  Nf6 {[%clk 0:02:58]} 2. Nc3 {[%clk 0:02:57]}  g6 {[%clk 0:02:59]} 3. g3 {[%clk 0:02:57]}  Bg7 {[%clk 0:02:59]} 4. Bg2 {[%clk 0:02:57]}  O-O {[%clk 0:03:00]} 5. Nf3 {[%clk 0:02:56]}  c5 {[%clk 0:03:01]} 6. O-O {[%clk 0:02:55]}  Nc6 {[%clk 0:03:01]} 7. d3 {[%clk 0:02:40]}  d5 {[%clk 0:03:01]} 8. cxd5 {[%clk 0:02:39]}  Nxd5 {[%clk 0:03:02]} 9. Bd2 {[%clk 0:02:39]}  Nc7 {[%clk 0:03:02]} 10. Rc1 {[%clk 0:02:38]}  b6 {[%clk 0:02:58]} 11. h3 {[%clk 0:02:33]}  Bb7 {[%clk 0:02:53]} 12. a3 {[%clk 0:02:11]}  Rc8 {[%clk 0:02:53]} 13. Qa4 {[%clk 0:01:50]}  a6 {[%clk 0:02:49]} 14. b4 {[%clk 0:01:44]}  b5 {[%clk 0:02:48]} 15. Qb3 {[%clk 0:01:42]}  cxb4 {[%clk 0:02:46]} 16. axb4 {[%clk 0:01:41]}  Ne6 {[%clk 0:02:46]} 17. Rfe1 {[%clk 0:01:32]}  Ncd4 {[%clk 0:02:45]} 18. Nxd4 {[%clk 0:01:20]}  Nxd4 {[%clk 0:02:46]} 19. Qa3 {[%clk 0:01:15]}  Bxg2 {[%clk 0:02:45]} 20. Kxg2 {[%clk 0:01:16]}  Qd6 {[%clk 0:02:45]} 21. e3 {[%clk 0:00:52]}  Qc6+ {[%clk 0:02:38]} 22. Ne4 {[%clk 0:00:52]}  Nc2 {[%clk 0:02:38]} 23. Qb3 {[%clk 0:00:37]}  Nxe1+ {[%clk 0:02:37]} 24. Rxe1 {[%clk 0:00:32]}  Qc2 {[%clk 0:02:35]} 25. Qxc2 {[%clk 0:00:29]}  Rxc2 {[%clk 0:02:34]} 26. Rd1 {[%clk 0:00:28]}  Rfc8 {[%clk 0:02:33]} 27. Nc5 {[%clk 0:00:28]}  a5 {[%clk 0:02:33]} 28. d4 {[%clk 0:00:26]}  a4 {[%clk 0:02:33]} 29. Be1 {[%clk 0:00:25]}  e6 {[%clk 0:02:33]} 30. Ne4 {[%clk 0:00:22]}  Rc1 {[%clk 0:02:32]} 31. Rxc1 {[%clk 0:00:22]}  Rxc1 {[%clk 0:02:33]} 32. Bd2 {[%clk 0:00:23]}  Rc2 {[%clk 0:02:33]} 33. Be1 {[%clk 0:00:22]}  a3 {[%clk 0:02:34]} 34. Nc3 {[%clk 0:00:20]}  a2 {[%clk 0:02:33]} 35. Nxa2 {[%clk 0:00:17]}  Rxa2 {[%clk 0:02:34]} 0-1

[Event "December 5 Early 2023"]
[Site "https://www.chess.com"]
[Date "2023.12.05"]
[Round "2"]
[White "Szyszylo, Rafal"]
[Black "Bocharov, Dmitry"]
[Result "0-1"]
[Board "138"]
[TimeControl "180+1"]
[WhiteFideId "1109626"]
[BlackFideId "4138716"]
[WhiteElo "2403"]
[BlackElo "2800"]
[WhiteTeam "POL"]
[BlackTeam "RUS"]
[WhiteClock "0:00:08"]
[BlackClock "0:00:17"]

1. e4 {[%clk 0:02:52]}  c5 {[%clk 0:02:59]} 2. Nc3 {[%clk 0:02:51]}  Nc6 {[%clk 0:02:58]} 3. Bb5 {[%clk 0:02:50]}  Nd4 {[%clk 0:02:58]} 4. Nf3 {[%clk 0:02:50]}  e6 {[%clk 0:02:58]} 5. O-O {[%clk 0:02:30]}  a6 {[%clk 0:02:50]} 6. Bd3 {[%clk 0:02:28]}  Nc6 {[%clk 0:02:45]} 7. Be2 {[%clk 0:02:11]}  Qb6 {[%clk 0:02:35]} 8. b3 {[%clk 0:01:59]}  d6 {[%clk 0:02:32]} 9. Bb2 {[%clk 0:01:58]}  Nf6 {[%clk 0:02:31]} 10. Re1 {[%clk 0:01:56]}  Be7 {[%clk 0:02:31]} 11. Bf1 {[%clk 0:01:56]}  O-O {[%clk 0:02:30]} 12. Na4 {[%clk 0:01:53]}  Qc7 {[%clk 0:02:30]} 13. d4 {[%clk 0:01:53]}  cxd4 {[%clk 0:02:29]} 14. Nxd4 {[%clk 0:01:53]}  Bd7 {[%clk 0:02:28]} 15. Nf3 {[%clk 0:01:32]}  b5 {[%clk 0:02:24]} 16. Nc3 {[%clk 0:01:31]}  Rfd8 {[%clk 0:02:06]} 17. Nd5 {[%clk 0:01:31]}  exd5 {[%clk 0:02:01]} 18. exd5 {[%clk 0:01:32]}  Ne5 {[%clk 0:01:58]} 19. Nxe5 {[%clk 0:01:31]}  dxe5 {[%clk 0:01:57]} 20. Bxe5 {[%clk 0:01:30]}  Bd6 {[%clk 0:01:52]} 21. Bxf6 {[%clk 0:01:31]}  gxf6 {[%clk 0:01:52]} 22. Qh5 {[%clk 0:01:16]}  Qxc2 {[%clk 0:01:40]} 23. Re3 {[%clk 0:01:07]}  Qg6 {[%clk 0:01:35]} 24. Qh4 {[%clk 0:01:08]}  Re8 {[%clk 0:01:29]} 25. Bd3 {[%clk 0:01:07]}  f5 {[%clk 0:01:14]} 26. Rf3 {[%clk 0:00:55]}  Qg4 {[%clk 0:01:08]} 27. Qh6 {[%clk 0:00:54]}  Be5 {[%clk 0:01:00]} 28. Rf1 {[%clk 0:00:37]}  Kh8 {[%clk 0:00:56]} 29. h3 {[%clk 0:00:36]}  Qg6 {[%clk 0:00:52]} 30. Qd2 {[%clk 0:00:20]}  Rg8 {[%clk 0:00:48]} 31. g3 {[%clk 0:00:20]}  Qh5 {[%clk 0:00:47]} 32. Kg2 {[%clk 0:00:20]}  f4 {[%clk 0:00:46]} 33. Rh1 {[%clk 0:00:10]}  Rg7 {[%clk 0:00:37]} 34. Qe2 {[%clk 0:00:10]}  Rag8 {[%clk 0:00:31]} 35. g4 {[%clk 0:00:08]}  Bxg4 {[%clk 0:00:26]} 36. hxg4 {[%clk 0:00:09]}  Rxg4+ {[%clk 0:00:21]} 37. Kf1 {[%clk 0:00:08]}  Qxh1# {[%clk 0:00:17]} 0-1

[Event "December 5 Early 2023"]
[Site "https://www.chess.com"]
[Date "2023.12.05"]
[Round "2"]
[White "Chaika, Vitalii"]
[Black "Avila Pavas, Santiago"]
[Result "0-1"]
[Board "140"]
[TimeControl "180+1"]
[WhiteFideId "14111802"]
[BlackFideId "4437128"]
[WhiteElo "2402"]
[BlackElo "2786"]
[WhiteTeam "UKR"]
[BlackTeam "COL"]
[WhiteClock "0:00:02"]
[BlackClock "0:01:35"]

1. d4 {[%clk 0:03:00]}  Nf6 {[%clk 0:03:00]} 2. Bf4 {[%clk 0:02:59]}  g6 {[%clk 0:03:00]} 3. e3 {[%clk 0:02:59]}  Bg7 {[%clk 0:03:00]} 4. h3 {[%clk 0:02:59]}  O-O {[%clk 0:03:00]} 5. Nf3 {[%clk 0:02:58]}  d6 {[%clk 0:03:01]} 6. Be2 {[%clk 0:02:58]}  Nc6 {[%clk 0:03:00]} 7. O-O {[%clk 0:02:56]}  Nd7 {[%clk 0:02:59]} 8. Bh2 {[%clk 0:02:56]}  e5 {[%clk 0:03:00]} 9. c4 {[%clk 0:02:56]}  Qe7 {[%clk 0:02:59]} 10. Nc3 {[%clk 0:02:55]}  Nf6 {[%clk 0:02:56]} 11. d5 {[%clk 0:02:46]}  Nd8 {[%clk 0:02:54]} 12. b4 {[%clk 0:02:45]}  Ne8 {[%clk 0:02:48]} 13. e4 {[%clk 0:02:31]}  f5 {[%clk 0:02:46]} 14. Nd2 {[%clk 0:02:17]}  f4 {[%clk 0:02:44]} 15. Bg4 {[%clk 0:02:13]}  Nf6 {[%clk 0:02:40]} 16. Bxc8 {[%clk 0:02:11]}  Rxc8 {[%clk 0:02:41]} 17. Nb3 {[%clk 0:02:02]}  g5 {[%clk 0:02:41]} 18. c5 {[%clk 0:01:59]}  h5 {[%clk 0:02:41]} 19. f3 {[%clk 0:01:43]}  Nf7 {[%clk 0:02:41]} 20. a4 {[%clk 0:01:29]}  Nh6 {[%clk 0:02:40]} 21. a5 {[%clk 0:01:07]}  g4 {[%clk 0:02:39]} 22. fxg4 {[%clk 0:01:05]}  hxg4 {[%clk 0:02:40]} 23. Kh1 {[%clk 0:01:00]}  Qd7 {[%clk 0:02:25]} 24. a6 {[%clk 0:00:57]}  bxa6 {[%clk 0:02:13]} 25. Rxa6 {[%clk 0:00:48]}  Rb8 {[%clk 0:02:05]} 26. b5 {[%clk 0:00:46]}  gxh3 {[%clk 0:02:02]} 27. gxh3 {[%clk 0:00:45]}  Qxh3 {[%clk 0:02:01]} 28. Qf3 {[%clk 0:00:44]}  Qh4 {[%clk 0:01:57]} 29. Qf2 {[%clk 0:00:40]}  Qh5 {[%clk 0:01:57]} 30. Qf3 {[%clk 0:00:38]}  Nhg4 {[%clk 0:01:56]} 31. Qe2 {[%clk 0:00:27]}  f3 {[%clk 0:01:49]} 32. Rxf3 {[%clk 0:00:20]}  Nxh2 {[%clk 0:01:49]} 33. Qxh2 {[%clk 0:00:16]}  Qxf3+ {[%clk 0:01:49]} 34. Qg2 {[%clk 0:00:16]}  Qxc3 {[%clk 0:01:49]} 35. Rxa7 {[%clk 0:00:13]}  Qxb3 {[%clk 0:01:48]} 36. Rxc7 {[%clk 0:00:13]}  Qd1+ {[%clk 0:01:47]} 37. Kh2 {[%clk 0:00:12]}  Ng4+ {[%clk 0:01:44]} 38. Kh3 {[%clk 0:00:11]}  Rxb5 {[%clk 0:01:37]} 39. Rxg7+ {[%clk 0:00:05]}  Kxg7 {[%clk 0:01:37]} 40. cxd6 {[%clk 0:00:02]}  Rh8+ {[%clk 0:01:35]} 0-1